bitfinex-derivatives/quotes_BNBF0:USTF0_20250211
["timestamp","ask_amount","ask_price","bid_price","bid_amount"]
[1739305179237,1.34851072,628.74,628.12,0.26823015]
[1739305179433,1.34851072,628.73,628.12,0.26823015]
[1739305179632,1.34851072,628.72,628.12,0.26823015]
[1739305179835,1.34853014,628.71,628.12,0.26823015]
[1739305180037,1.34853014,628.7,628.12,0.26823015]
[1739305180235,1.34853014,628.69,628.12,0.26823015]
[1739305180437,1.34853014,628.68,628.12,0.26823015]
[1739305180738,1.34853014,628.67,628.12,0.26823015]
[1739305180937,1.34853014,628.66,628.12,0.26823015]
[1739305181136,1.34853014,628.65,628.12,0.26823015]
[1739305181332,1.34853014,628.64,628.12,0.26823015]
[1739305181534,1.34853014,628.63,628.12,0.26823015]
[1739305181737,1.34853014,628.62,628.12,0.26823015]
[1739305181938,1.34853014,628.61,628.12,0.26823015]
[1739305182139,1.34853014,628.6,628.12,0.26823015]
[1739305182342,1.34853014,628.59,628.12,0.26823015]
[1739305182640,1.34853014,628.58,628.12,0.26823015]
[1739305182841,1.34853014,628.57,628.12,0.26823015]
[1739305183043,1.34959535,628.56,628.12,0.26823015]
[1739305183237,1.34959535,628.55,628.12,0.26823015]
[1739305183436,1.34959535,628.54,628.12,0.26823015]
[1739305183638,1.34959535,628.53,628.13,0.26840814]
[1739305183837,0.31781344,629.3,628.12,0.26840814]
[1739305184034,1.35013951,629.29,628.13,0.26840814]
[1739305184239,1.66796305,629.28,628.12,0.26840814]
[1739305184435,1.6679681,629.27,628.13,0.26840814]
[1739305184640,1.64243747,629.26,628.11,0.31841556]
[1739305184841,1.96027616,629.25,628.12,0.26850569]
[1739305185041,1.96028121,629.24,628.12,0.26850569]
[1739305185243,1.35013951,629.23,628.11,0.31841556]
[1739305185442,1.64245728,629.22,628.11,0.31841556]
[1739305185637,1.64245728,629.21,627.95,1.18445702]
[1739305185841,1.64245728,629.2,627.96,0.26861105]
[1739305186043,1.64360064,629.19,627.96,0.26861105]
[1739305186244,1.64360064,629.18,627.96,0.26861105]
[1739305186446,1.64408178,629.17,627.96,0.26861105]
[1739305186745,1.64408178,629.16,627.97,0.26861105]
[1739305186944,1.64408178,629.15,627.83,0.26861105]
[1739305187142,1.35176401,629.14,627.98,0.26861105]
[1739305187447,1.66966333,629.13,627.99,0.26861105]
[1739305187739,1.66966838,629.12,627.83,0.26861105]
[1739305187940,1.35232218,629.11,627.82,1.18445702]
[1739305188145,1.35232218,629.1,627.83,0.26856183]
[1739305188346,1.3527184,629.09,627.83,0.26856183]
[1739305188545,1.3527184,629.08,627.83,0.26856183]
[1739305188747,1.3527184,629.07,627.83,0.26856183]
[1739305189047,1.67065309,629.06,627.83,0.26856183]
[1739305189246,1.67065815,629.05,627.76,0.26856183]
[1739305189444,1.6706632,629.04,627.77,0.26856183]
[1739305189643,1.67066825,629.03,627.76,0.26856183]
[1739305189845,1.3527184,629.02,627.77,0.31858801]
[1739305190047,1.3527184,629.01,627.78,0.26856183]
[1739305190247,1.3527184,629.0,627.79,0.58713969]
[1739305190447,0.31794985,629.03,627.75,1.18445702]
[1739305190448,1.3527184,628.99,627.81,0.31856771]
[1739305190647,1.3527184,628.98,627.82,0.26856183]
[1739305190850,1.3527184,628.97,627.83,0.31855757]
[1739305191047,0.31794985,629.03,627.83,0.31855757]
[1739305191048,1.3527184,628.96,627.84,0.26856183]
[1739305191248,1.3527184,628.95,627.85,0.58710925]
[1739305191449,1.3527184,628.94,627.86,0.58710418]
[1739305191652,1.3527184,628.93,627.87,0.26856183]
[1739305191850,1.3527184,628.92,627.88,0.3185322]
[1739305192050,1.3527184,628.91,627.89,0.26856183]
[1739305192250,1.3527184,628.9,627.9,0.31852205]
[1739305192451,1.3527184,628.89,627.91,0.26856183]
[1739305192651,1.3527184,628.88,627.92,0.31851191]
[1739305192848,1.3527184,628.87,627.93,0.26856183]
[1739305193047,1.3527184,628.86,627.94,0.31850176]
[1739305193251,1.3527184,628.85,627.95,0.26856183]
[1739305193451,1.3527184,628.84,627.96,0.31849162]
[1739305193650,1.3527184,628.83,627.97,0.26856183]
[1739305193852,1.3527184,628.82,627.98,0.31848148]
[1739305194046,1.3527184,628.81,627.99,0.26856183]
[1739305194248,1.3527184,628.8,627.99,0.58703823]
[1739305194447,0.31794985,629.03,627.99,0.58703823]
[1739305194753,1.35497795,629.02,628.0,0.26856183]
[1739305194954,1.35497795,629.01,628.0,0.26856183]
[1739305195154,1.35497795,629.0,628.0,0.26856183]
[1739305195355,1.35497795,628.99,628.0,0.26856183]
[1739305195556,1.35497795,628.98,628.0,0.26856183]
[1739305195756,1.35497795,628.97,628.0,0.26856183]
[1739305195949,1.35497795,628.96,628.0,0.26856183]
[1739305196153,1.35536274,628.95,628.0,0.26856183]
[1739305196355,0.31794985,629.03,628.0,0.26856183]
[1739305196356,1.35536274,628.94,628.0,0.26856183]
[1739305196556,1.35536274,628.93,628.0,0.26856183]
[1739305196757,1.35536274,628.92,628.0,0.26856183]
[1739305196951,1.35536274,628.91,628.0,0.26856183]
[1739305197151,1.35536274,628.9,628.0,0.26856183]
[1739305197352,1.35536274,628.89,628.0,0.26856183]
[1739305197553,1.35536274,628.88,628.0,0.26856183]
[1739305197859,1.35536274,628.87,628.0,0.26856183]
[1739305198060,1.35536274,628.86,628.0,0.26856183]
[1739305198361,1.35590586,628.85,628.01,0.31846626]
[1739305198560,1.35590586,628.84,628.02,0.26856183]
[1739305198859,1.35590586,628.83,628.02,0.58702302]
[1739305199065,1.35590586,628.82,628.03,0.26856183]
[1739305199259,1.35590586,628.81,628.03,0.26856183]
[1739305199459,1.35590586,628.8,628.03,0.26856183]
[1739305199654,1.35590586,628.79,628.04,0.31845105]
[1739305199861,1.35590586,628.78,628.05,0.26856183]
[1739305200060,1.35590586,628.77,628.06,0.58675044]
[1739305200261,1.35590586,628.76,628.07,0.58674537]
[1739305200463,1.35590586,628.75,628.08,0.5867403]
[1739305200655,1.35590586,628.74,628.09,0.58673523]
[1739305200859,1.35590586,628.73,628.09,0.58673523]
[1739305201056,1.35590586,628.72,628.1,0.26830953]
[1739305201259,1.35590586,628.71,628.1,0.26830953]
[1739305201461,1.35590586,628.7,628.11,0.31841556]
[1739305201661,1.35590586,628.69,628.12,0.26830953]
[1739305201860,1.35590586,628.68,628.12,0.26830953]
[1739305202059,1.35605535,628.67,628.12,0.26830953]
[1739305202360,1.35605535,628.66,628.13,0.31840542]
[1739305202665,1.35605535,628.65,628.14,0.26830953]
[1739305202868,1.35605535,628.64,628.15,0.31839528]
[1739305203063,1.35605535,628.63,628.15,0.31839528]
[1739305203365,1.35605535,628.62,628.16,0.26830953]
[1739305203560,1.35605535,628.61,628.16,0.26830953]
[1739305203765,1.35605535,628.6,628.17,0.31838515]
[1739305203965,1.35605535,628.59,628.17,0.31838515]
[1739305204159,1.35605535,628.58,628.18,0.26820289]
[1739305204359,1.35605535,628.57,628.19,0.31837501]
[1739305204565,1.35605535,628.56,628.2,0.26820289]
[1739305204768,1.35605535,628.55,628.2,0.26820289]
[1739305204965,6.26029168,629.69,628.2,0.26820289]
[1739305205163,5.7431649,629.68,628.2,0.26820289]
[1739305205359,1.67386147,629.67,628.21,0.31836487]
[1739305205558,1.67342378,629.66,628.22,0.26820289]
[1739305205763,1.35579205,629.65,628.23,0.31835474]
[1739305205962,1.35579205,629.64,628.24,0.26820289]
[1739305206162,1.35579205,629.63,628.24,0.26820289]
[1739305206364,1.67344396,629.62,628.25,0.3183446]
[1739305206566,1.67344901,629.61,628.26,0.26820289]
[1739305206764,1.35579205,629.6,628.27,0.31833447]
[1739305206965,1.6734591,629.59,628.28,0.26792118]
[1739305207164,1.67346414,629.58,628.28,0.26792118]
[1739305207366,1.67346919,629.57,628.28,0.26792118]
[1739305207661,1.67347424,629.56,628.28,0.26792118]
[1739305207862,1.35579205,629.55,628.28,0.26792118]
[1739305208066,1.35579205,629.54,628.28,0.26792118]
[1739305208266,1.35579205,629.53,628.28,0.26792118]
[1739305208467,1.35579205,629.52,628.28,0.26792118]
[1739305208667,1.35579205,629.51,628.28,0.26792118]
[1739305208868,1.35579205,629.5,628.28,0.26792118]
[1739305209167,1.35579205,629.49,628.28,0.26792118]
[1739305209362,1.35579205,629.48,628.28,0.26792118]
[1739305209563,1.35579205,629.47,628.28,0.58625058]
[1739305209767,1.35579205,629.46,628.29,0.26792118]
[1739305209967,1.35579205,629.45,628.29,0.26792118]
[1739305210164,1.35579205,629.44,628.29,0.26792118]
[1739305210365,1.35579205,629.43,628.29,0.26792118]
[1739305210564,0.31768219,629.56,628.29,0.26792118]
[1739305210565,1.35579205,629.42,628.29,0.26792118]
[1739305210769,1.35579205,629.41,628.29,0.26792118]
[1739305210970,1.35579205,629.4,628.29,0.26792118]
[1739305211270,1.35579205,629.39,628.3,0.31831927]
[1739305211466,1.35579205,629.38,628.31,0.26792118]
[1739305211670,1.35579205,629.37,628.31,0.26792118]
[1739305211865,1.35579205,629.36,628.31,0.26792118]
[1739305212069,1.35579205,629.35,628.31,0.26792118]
[1739305212264,1.35579205,629.34,628.31,0.26792118]
[1739305212466,1.35579205,629.33,628.31,0.26792118]
[1739305212670,1.35579205,629.32,628.31,0.26792118]
[1739305212867,0.31768219,629.56,628.31,0.26792118]
[1739305212868,1.35579205,629.31,628.31,0.26792118]
[1739305213065,1.35579205,629.3,628.31,0.26792118]
[1739305213269,1.35579205,629.29,628.31,0.26792118]
[1739305213469,1.35579205,629.28,628.31,0.26792118]
[1739305213664,1.35423411,629.27,628.31,0.26792118]
[1739305213867,1.35423411,629.26,628.31,0.26792118]
[1739305214067,1.35423411,629.25,628.31,0.26792118]
[1739305214268,1.35423411,629.24,628.31,0.26792118]
[1739305214467,1.35423411,629.23,628.31,0.26792118]
[1739305214770,1.35423411,629.22,628.31,0.26792118]
[1739305214969,1.35423411,629.21,628.31,0.26792118]
[1739305215170,1.35423411,629.2,628.31,0.26792118]
[1739305215374,1.35423411,629.19,628.31,0.26792118]
[1739305215574,0.31768219,629.56,628.31,0.26792118]
[1739305215774,1.35393983,629.55,628.31,0.26792118]
[1739305216073,1.35393983,629.54,628.3,0.31831927]
[1739305216272,1.35393983,629.53,628.31,0.26833573]
[1739305216572,1.35393983,629.52,628.31,0.26833573]
[1739305216768,1.35393983,629.51,628.32,0.31830914]
[1739305216972,1.35393983,629.5,628.33,0.26833573]
[1739305217173,1.35393983,629.49,628.34,0.31829901]
[1739305217371,1.35393983,629.48,628.35,0.26833573]
[1739305217573,0.31768723,629.55,628.36,0.31828887]
[1739305217773,1.35355886,629.54,628.37,0.26833573]
[1739305217971,1.35355886,629.53,628.36,0.31828887]
[1739305218168,0.31768723,629.55,628.37,0.26818209]
[1739305218169,1.35355776,629.52,628.37,0.26818209]
[1739305218367,1.35355776,629.51,628.37,0.26818209]
[1739305218573,1.35355776,629.5,628.37,0.26818209]
[1739305218770,1.35355776,629.49,628.37,0.26818209]
[1739305218974,1.35355776,629.48,628.37,0.26818209]
[1739305219170,1.35355776,629.47,628.37,0.26818209]
[1739305219372,1.35355776,629.46,628.37,0.26818209]
[1739305219576,1.35355776,629.45,628.37,0.26818209]
[1739305219775,1.35319061,629.44,628.37,0.26818209]
[1739305219977,1.35319061,629.43,628.37,0.26818209]
[1739305220171,1.35319061,629.42,628.37,0.26818209]
[1739305220374,1.35319061,629.41,628.37,0.26818209]
[1739305220575,1.35319061,629.4,628.37,0.26818209]
[1739305220775,1.35319061,629.39,628.37,0.26818209]
[1739305221073,1.35319061,629.38,628.37,0.26818209]
[1739305221377,1.35319061,629.37,628.37,0.26818209]
[1739305221579,1.35319061,629.36,628.37,0.26818209]
[1739305221774,1.35319061,629.35,628.37,0.26818209]
[1739305222073,1.35319061,629.34,628.37,0.26818209]
[1739305222279,1.35319061,629.33,628.37,0.26818209]
[1739305222479,1.35319061,629.32,628.37,0.26818209]
[1739305222678,1.35319061,629.31,628.37,0.26818209]
[1739305222879,1.35319061,629.3,628.37,0.26818209]
[1739305223186,0.31768723,629.55,628.37,0.26818209]
[1739305223187,1.35319061,629.29,628.37,0.26818209]
[1739305223478,0.31768723,629.55,628.38,0.26811188]
[1739305223479,1.35319061,629.28,628.38,0.26811188]
[1739305223679,1.35319061,629.27,628.37,0.26811188]
[1739305223876,1.35345912,629.26,628.38,0.26811188]
[1739305224175,1.35345912,629.25,628.39,0.26811188]
[1739305224381,1.35345912,629.24,628.37,0.26811188]
[1739305224572,1.35345912,629.23,628.38,0.26811188]
[1739305224775,1.35345912,629.22,628.37,0.26811188]
[1739305224980,1.35345912,629.21,628.38,0.26811188]
[1739305225179,1.35345912,629.2,628.38,0.26811188]
[1739305225378,1.35345912,629.19,628.37,0.26811188]
[1739305225573,1.35345912,629.18,628.38,0.26811188]
[1739305225776,1.35345912,629.17,628.39,0.26811188]
[1739305225976,1.35345912,629.16,628.4,0.26811188]
[1739305226177,1.35345912,629.15,628.37,0.26811188]
[1739305226378,1.35355331,629.14,628.38,0.26811188]
[1739305226576,0.31768723,629.55,628.36,0.31828887]
[1739305226577,1.35355331,629.13,628.37,0.26811188]
[1739305226777,1.35355331,629.12,628.38,0.26811188]
[1739305226975,1.35355331,629.11,628.37,0.26811188]
[1739305227180,1.35355331,629.1,628.38,0.26811188]
[1739305227380,1.35355331,629.09,628.37,0.26811188]
[1739305227580,1.35355331,629.08,628.38,0.26811188]
[1739305227881,1.35356036,629.07,628.39,0.26811188]
[1739305228179,1.35356036,629.06,628.4,0.26811188]
[1739305228377,1.35356036,629.05,628.37,0.26811188]
[1739305228578,1.35356036,629.04,628.37,0.26811188]
[1739305228774,1.35356036,629.03,628.37,0.26811188]
[1739305228979,1.35356036,629.02,627.95,1.18445702]
[1739305229179,1.35356036,629.01,627.96,0.26821713]
[1739305229380,1.35356036,629.0,627.96,0.26821713]
[1739305229576,1.35356036,628.99,627.96,0.26821713]
[1739305229775,1.35356036,628.98,627.96,0.26821713]
[1739305230076,1.35384074,628.97,627.96,0.26821713]
[1739305230277,1.35384074,628.96,627.89,0.26821713]
[1739305230479,1.35384074,628.95,627.9,0.26821713]
[1739305230677,1.35384074,628.94,627.88,1.18445702]
[1739305230880,1.35384074,628.93,627.89,0.26844264]
[1739305231081,1.35384074,628.92,627.89,0.26844264]
[1739305231376,1.35384074,628.91,627.89,0.26844264]
[1739305231580,1.35384074,628.9,627.89,0.26844264]
[1739305231781,1.35384074,628.89,627.89,0.26844264]
[1739305231973,1.35384074,628.88,627.89,0.26844264]
[1739305232175,1.35384074,628.87,627.89,0.26844264]
[1739305232379,1.35384074,628.86,627.89,0.26844264]
[1739305232575,2.90299242,629.4,627.89,0.26844264]
[1739305232576,1.35384074,628.85,627.89,0.26844264]
[1739305232778,1.35384074,628.84,627.89,0.26844264]
[1739305232976,1.35384074,628.83,627.9,0.26844264]
[1739305233280,1.35384074,628.83,627.62,1.66115732]
[1739305233281,1.35384074,628.82,627.91,0.26844264]
[1739305233481,1.35384074,628.81,627.63,0.26844264]
[1739305233677,1.35384074,628.8,627.64,0.318654]
[1739305233881,1.35384074,628.79,627.65,0.26844264]
[1739305234081,1.35384074,628.78,627.66,0.31864385]
[1739305234282,1.35308843,628.77,627.67,0.26844264]
[1739305234483,1.35308843,628.76,627.67,0.26844264]
[1739305234678,1.35308843,628.75,627.68,0.31863369]
[1739305234880,1.35308843,628.74,627.69,0.26844264]
[1739305235083,1.35308843,628.73,627.7,0.31862354]
[1739305235279,1.35308843,628.72,627.71,0.26844264]
[1739305235485,1.35308843,628.71,627.72,0.31861339]
[1739305235685,1.35308843,628.7,627.73,0.26844264]
[1739305235884,1.35308843,628.69,627.73,0.26844264]
[1739305236088,1.35308843,628.68,627.73,0.26844264]
[1739305236387,1.35308843,628.67,627.73,0.26844264]
[1739305236587,1.35308843,628.66,627.73,0.26844264]
[1739305236787,9.15907739,629.36,627.73,0.26844264]
[1739305236788,1.35308843,628.65,627.73,0.26844264]
[1739305236984,1.35308843,628.64,627.73,0.26844264]
[1739305237286,1.35308843,628.63,627.73,0.26844264]
[1739305237488,1.35308843,628.62,627.73,0.26844264]
[1739305237787,1.35308843,628.61,627.73,0.26844264]
[1739305237987,1.35308843,628.6,627.73,0.26844264]
[1739305238183,1.35308843,628.59,627.73,0.26844264]
[1739305238387,1.35308843,628.58,627.73,0.26844264]
[1739305238587,1.35308843,628.57,627.73,0.26844264]
[1739305238888,1.35308843,628.56,627.73,0.26844264]
[1739305239089,1.35308843,628.55,627.73,0.26844264]
[1739305239288,6.25608497,629.33,627.73,0.26844264]
[1739305239289,1.35308843,628.54,627.73,0.26844264]
[1739305239490,1.35308843,628.53,627.73,0.26844264]
[1739305239790,1.35308843,628.52,627.73,0.26844264]
[1739305239983,1.35308843,628.51,627.73,0.26844264]
[1739305240186,1.35308843,628.5,627.73,0.26844264]
[1739305240386,1.35308843,628.49,627.73,0.26844264]
[1739305240587,1.35308843,628.48,627.73,0.26844264]
[1739305240784,1.35308843,628.47,627.73,0.26844264]
[1739305241091,1.35308843,628.46,627.73,0.26844264]
[1739305241292,1.35308843,628.45,627.74,0.26865619]
[1739305241487,1.35308843,628.44,627.74,0.26865619]
[1739305241689,1.35308843,628.43,627.75,0.26865619]
[1739305241891,1.35042101,628.42,627.76,0.26868896]
[1739305242091,1.35042101,628.41,627.77,0.26868896]
[1739305242392,1.35014987,628.4,627.78,0.26868896]
[1739305242587,1.35014987,628.39,627.73,0.26868896]
[1739305242892,1.35014987,628.38,627.74,0.26868896]
[1739305243093,4.06930848,629.27,627.73,0.26868896]
[1739305243295,0.31783869,629.25,627.74,0.26868896]
[1739305243494,5.71178337,629.24,627.73,0.26868896]
[1739305243694,7.89855986,629.23,627.73,0.26868896]
[1739305243893,0.3178589,629.21,627.73,0.26868896]
[1739305244096,5.71147097,629.2,627.73,0.26868896]
[1739305244289,0.31787405,629.18,627.73,0.26868896]
[1739305244494,5.71147097,629.17,627.73,0.26868896]
[1739305244696,0.31788921,629.15,627.73,0.26868896]
[1739305244895,1.64216249,629.14,627.73,0.26868896]
[1739305245098,5.71147097,629.13,627.73,0.26868896]
[1739305245395,5.71147097,629.12,627.73,0.26868896]
[1739305245596,5.71147097,629.11,627.73,0.26868896]
[1739305245794,0.31791953,629.09,627.73,0.26868896]
[1739305245993,5.41906848,629.08,627.73,0.26868896]
[1739305246193,5.73699812,629.07,627.73,0.26868896]
[1739305246393,6.02940566,629.06,627.73,0.26868896]
[1739305246594,6.02941072,629.05,627.73,0.26868896]
[1739305246795,6.02941577,629.04,627.73,0.26868896]
[1739305247093,6.02942082,629.03,627.73,0.26868896]
[1739305247397,6.02942588,629.02,627.73,0.26868896]
[1739305247590,6.02943093,629.01,627.73,0.26868896]
[1739305247794,6.02943599,629.0,627.73,0.26868896]
[1739305247999,1.96013256,628.99,627.73,0.26868896]
[1739305248196,1.96013762,628.98,627.73,0.26868896]
[1739305248398,1.34976,628.97,627.73,0.26868896]
[1739305248594,1.34976,628.96,627.73,0.26868896]
[1739305248791,1.34976,628.95,627.73,0.26868896]
[1739305248999,1.34976,628.94,627.73,0.26868896]
[1739305249199,1.66776041,628.93,627.72,0.31861339]
[1739305249399,1.66776546,628.92,627.73,0.2686964]
[1739305249597,1.66777052,628.91,627.73,0.2686964]
[1739305249800,1.66777558,628.9,627.73,0.2686964]
[1739305250000,1.34976,628.89,627.73,0.2686964]
[1739305250300,1.34976,628.88,627.73,0.2686964]
[1739305250498,0.31801558,628.9,627.73,0.2686964]
[1739305250701,1.3479386,628.89,627.73,0.2686964]
[1739305250899,1.3479386,628.88,627.73,0.2686964]
[1739305251101,1.3479386,628.87,627.73,0.2686964]
[1739305251298,1.3479386,628.86,627.73,0.2686964]
[1739305251498,1.3479386,628.85,627.73,0.2686964]
[1739305251700,1.3479386,628.84,627.73,0.2686964]
[1739305251899,1.3479386,628.83,627.73,0.2686964]
[1739305252097,1.3479386,628.82,627.73,0.2686964]
[1739305252401,1.3479386,628.81,627.73,0.2686964]
[1739305252603,1.3479386,628.8,627.73,0.2686964]
[1739305252904,1.3479386,628.79,627.73,0.2686964]
[1739305253099,1.3479386,628.78,627.73,0.2686964]
[1739305253303,1.3479386,628.77,627.73,0.2686964]
[1739305253603,1.66602499,628.76,627.73,0.2686964]
[1739305253797,1.66603005,628.75,627.73,0.2686964]
[1739305254001,1.3479386,628.74,627.73,0.2686964]
[1739305254202,1.3479386,628.73,627.73,0.2686964]
[1739305254398,1.3479386,628.72,627.73,0.2686964]
[1739305254598,1.3479386,628.71,627.72,0.31861339]
[1739305254798,1.3479386,628.7,627.73,0.26895268]
[1739305254997,1.3479386,628.69,627.73,0.26895268]
[1739305255202,1.3479386,628.68,627.73,0.26895268]
[1739305255400,1.3479386,628.67,627.73,0.26895268]
[1739305255600,1.3479386,628.66,627.73,0.26895268]
[1739305255799,1.3479386,628.65,627.73,0.26895268]
[1739305256005,1.3479386,628.64,627.1,0.26895268]
[1739305256204,1.3479386,628.63,627.21,1.66216232]
[1739305256404,1.3479386,628.62,627.22,0.58782006]
[1739305256605,1.3479386,628.61,627.23,0.58781497]
[1739305256801,1.3479386,628.6,627.24,0.58780989]
[1739305257008,1.3479386,628.59,627.25,0.58780481]
[1739305257203,1.3479386,628.58,627.27,0.31884196]
[1739305257405,1.3479386,628.57,627.28,0.26895268]
[1739305257603,1.3479386,628.56,627.28,0.26895268]
[1739305257802,1.3479386,628.55,627.29,0.58778448]
[1739305258002,1.3479386,628.54,627.31,0.31882163]
[1739305258203,0.31809145,628.75,627.32,0.26895268]
[1739305258406,1.34533995,628.74,627.34,0.31880638]
[1739305258604,1.34533995,628.73,627.35,0.26895268]
[1739305258800,1.3449639,628.72,627.37,0.31879114]
[1739305259007,1.3449639,628.71,627.38,0.26895268]
[1739305259209,1.3449639,628.7,627.4,0.3187759]
[1739305259407,1.3449639,628.69,627.41,0.26895268]
[1739305259602,1.3449639,628.68,627.41,0.26895268]
[1739305259802,1.3449639,628.67,627.41,0.26895268]
[1739305260006,1.3449639,628.66,627.41,0.26895268]
[1739305260211,1.3449639,628.65,627.41,0.26895268]
[1739305260406,0.31809145,628.75,627.43,0.31876065]
[1739305260407,1.34467546,628.64,627.43,0.31876065]
[1739305260606,1.34467546,628.63,627.44,0.26895268]
[1739305260812,1.34467546,628.62,627.44,0.26895268]
[1739305261005,1.34467546,628.61,627.44,0.26895268]
[1739305261208,1.34467546,628.6,627.44,0.26895268]
[1739305261512,1.34467546,628.59,627.45,0.26889868]
[1739305261712,1.34467546,628.58,627.44,0.26889868]
[1739305262012,1.34467546,628.57,627.45,0.26889868]
[1739305262210,1.34467546,628.56,627.44,0.26889868]
[1739305262412,1.34467546,628.55,627.45,0.26889868]
[1739305262606,1.34467546,628.54,627.47,0.31874033]
[1739305262812,1.34467546,628.53,627.48,0.26889868]
[1739305263013,1.34467546,628.52,627.49,0.31873017]
[1739305263312,1.34467546,628.51,627.5,0.26889868]
[1739305263512,1.34467546,628.5,627.51,0.31872002]
[1739305263711,1.34467546,628.49,627.52,0.26889868]
[1739305263911,1.34467546,628.48,627.53,0.31870986]
[1739305264213,1.34467546,628.47,627.54,0.26889868]
[1739305264410,1.34467546,628.46,627.55,0.3186997]
[1739305264611,1.34467546,628.45,627.56,0.26889868]
[1739305264807,1.34467546,628.44,627.56,0.26889868]
[1739305265005,1.34467546,628.43,627.56,0.26889868]
[1739305265211,1.34467546,628.42,627.56,0.26889868]
[1739305265410,1.34467546,628.41,627.56,0.26889868]
[1739305265613,1.34467546,628.4,627.56,0.26889868]
[1739305265912,1.34467546,628.39,627.56,0.26889868]
[1739305266111,1.34518649,628.38,627.56,0.26889868]
[1739305266309,0.31809145,628.75,627.56,0.26889868]
[1739305266310,1.34518649,628.37,627.56,0.26889868]
[1739305266513,1.34518649,628.36,627.56,0.26889868]
[1739305266713,1.34518649,628.35,627.56,0.26889868]
[1739305266915,1.34518649,628.34,627.56,0.26889868]
[1739305267114,1.34518649,628.33,627.56,0.26889868]
[1739305267316,1.34518649,628.32,627.56,0.26889868]
[1739305267518,1.34518649,628.31,627.56,0.26889868]
[1739305267717,1.34518649,628.3,627.56,0.26889868]
[1739305267913,1.34518649,628.29,627.56,0.26889868]
[1739305268120,1.34518649,628.28,627.56,0.26889868]
[1739305268320,1.34518649,628.27,627.56,0.26889868]
[1739305268513,1.34518649,628.26,627.56,0.26889868]
[1739305268718,1.34518649,628.25,627.56,0.26889868]
[1739305268916,1.34518649,628.24,627.56,0.26889868]
[1739305269113,1.34518649,628.23,627.56,0.26889868]
[1739305269319,1.34518649,628.22,627.56,0.26889868]
[1739305269515,1.34518649,628.21,627.56,0.26889868]
[1739305269719,1.34518649,628.2,627.56,0.26889868]
[1739305270016,1.34518649,628.19,627.56,0.26889868]
[1739305270319,1.34518649,628.18,627.56,0.26889868]
[1739305270521,1.34518649,628.17,627.56,0.26889868]
[1739305270718,1.34518649,628.16,627.56,0.26889868]
[1739305270920,1.34518649,628.15,627.56,0.26889868]
[1739305271118,1.34518649,628.14,627.56,0.26889868]
[1739305271321,1.34518649,628.13,627.56,0.26889868]
[1739305271521,1.34518649,628.12,627.56,0.26889868]
[1739305271722,1.34518649,628.11,627.56,0.26889868]
[1739305271919,1.34518649,628.1,627.56,0.26889868]
[1739305272119,1.34518649,628.09,627.56,0.26889868]
[1739305272316,1.34518649,628.08,627.56,0.26889868]
[1739305272619,1.34518649,628.07,627.56,0.26889868]
[1739305272817,1.34518649,628.06,627.56,0.26889868]
[1739305273016,0.31809145,628.75,627.56,0.26889868]
[1739305273017,1.34518649,628.05,627.56,0.26889868]
[1739305273223,1.34518649,628.04,627.56,0.26889868]
[1739305273423,1.34518649,628.03,627.56,0.26889868]
[1739305273723,1.34518649,628.02,627.56,0.26889868]
[1739305273917,1.34518649,628.01,627.56,0.26889868]
[1739305274121,1.34691794,628.0,627.56,0.26889868]
[1739305274319,1.34691794,627.99,627.56,0.26889868]
[1739305274519,1.34691794,627.98,627.56,0.26889868]
[1739305274723,1.34691794,627.97,627.6,1.18445702]
[1739305274924,1.34691794,627.96,627.61,0.26889868]
[1739305275126,1.34691794,627.95,627.61,0.26889868]
[1739305275322,1.34691794,627.94,627.61,0.26889868]
[1739305275525,1.34691794,627.93,627.61,0.26889868]
[1739305275725,1.34691794,627.92,627.61,0.26889868]
[1739305275929,1.34691794,627.91,627.6,1.18445702]
[1739305276122,1.34691794,627.9,627.6,1.18445702]
[1739305276322,1.34691794,627.89,627.6,1.18445702]
[1739305276528,1.34691794,627.88,627.6,1.18445702]
[1739305276726,1.34691794,627.87,627.6,1.18445702]
[1739305276928,1.34691794,627.86,627.6,1.18445702]
[1739305277122,1.34691794,627.85,627.6,1.18445702]
[1739305277327,1.34691794,627.84,627.6,1.18445702]
[1739305277526,1.34691794,627.83,627.3,1.18445702]
[1739305277728,1.34691794,627.82,627.31,0.26980827]
[1739305277931,1.34691794,627.81,627.31,0.26980827]
[1739305278230,1.34691794,627.8,627.31,0.26980827]
[1739305278526,1.34691794,627.79,627.31,0.26980827]
[1739305278726,1.34691794,627.78,627.31,0.26980827]
[1739305278926,1.34691794,627.77,627.31,0.26980827]
[1739305279127,1.34691794,627.76,627.31,0.26980827]
[1739305279333,1.34691794,627.75,627.31,0.26980827]
[1739305279526,1.34691794,627.74,627.31,0.26980827]
[1739305279731,1.34691794,627.73,627.31,0.26980827]
[1739305279926,1.34691794,627.72,627.31,0.26980827]
[1739305280131,1.34691794,627.71,627.31,0.26980827]
[1739305280331,1.34691794,627.7,627.31,0.26980827]
[1739305280530,1.34691794,627.69,627.31,0.26980827]
[1739305280729,1.34691794,627.68,627.31,0.26980827]
[1739305280933,1.34691794,627.67,626.95,0.26980827]
[1739305281134,1.34691794,627.66,626.96,0.58880788]
[1739305281335,1.34691794,627.65,626.97,0.26980827]
[1739305281529,1.34691794,627.64,626.97,0.26980827]